bitfinex/quotes_BTCUSD_20250512
["timestamp","ask_amount","ask_price","bid_price","bid_amount"]
[1747071413694,0.72803009,102850.0,102840.0,0.00113698]
[1747071413913,0.74463009,102850.0,102840.0,0.00113698]
[1747071414338,0.77650765,102850.0,102840.0,0.00113698]
[1747071416930,0.74463009,102850.0,102840.0,0.00113698]
[1747071421392,0.84463009,102850.0,102840.0,0.00113698]
[1747071422093,0.84363009,102850.0,102840.0,0.00013698]
[1747071422307,0.84463009,102850.0,102840.0,0.00113698]
[1747071422514,0.84363009,102850.0,102840.0,0.00113698]
[1747071422720,1.00303494,102850.0,102840.0,0.47752622]
[1747071422945,1.00303494,102850.0,102840.0,0.03203698]
[1747071422946,0.78779494,102850.0,102840.0,0.03203698]
[1747071423408,0.70303494,102850.0,102840.0,0.03203698]
[1747071423611,1.08795494,102850.0,102840.0,0.49282622]
[1747071423844,0.82668481,102850.0,102840.0,0.49282622]
[1747071424274,0.82668481,102850.0,102840.0,0.03203698]
[1747071424916,0.82668481,102850.0,102840.0,0.49282622]
[1747071425538,0.82668481,102850.0,102840.0,0.03203698]
[1747071426382,0.82668481,102850.0,102840.0,0.43203698]
[1747071426812,0.82668481,102850.0,102840.0,0.41673698]
[1747071427228,0.82668481,102850.0,102840.0,0.43193698]
[1747071429154,0.68795494,102850.0,102840.0,0.43193698]
[1747071429366,0.79543494,102850.0,102840.0,0.49272622]
[1747071429568,0.98783494,102850.0,102840.0,0.49272622]
[1747071429719,0.98683494,102850.0,102840.0,0.49172622]
[1747071429911,0.98683494,102850.0,102840.0,0.89272622]
[1747071429912,0.98783494,102850.0,102840.0,0.89272622]
[1747071430110,1.08168924,102850.0,102840.0,0.43193698]
[1747071430319,1.08268924,102850.0,102840.0,0.41673698]
[1747071431102,0.78268924,102850.0,102840.0,0.40113698]
[1747071431528,0.78268924,102850.0,102840.0,0.00113698]
[1747071431974,0.78268924,102850.0,102840.0,0.01683698]
[1747071432604,0.68683494,102850.0,102840.0,0.49392622]
[1747071432812,0.98683494,102850.0,102840.0,0.49392622]
[1747071433578,0.68699494,102850.0,102840.0,0.49392622]
[1747071433790,0.98703494,102850.0,102840.0,0.49392622]
[1747071434031,0.98703494,102850.0,102840.0,0.69812691]
[1747071434264,0.97731224,102850.0,102840.0,0.49392622]
[1747071435726,1.0221447,102850.0,102840.0,0.49392622]
[1747071436289,1.0222647,102850.0,102840.0,0.89392622]
[1747071438115,1.07290758,102850.0,102840.0,0.41583698]
[1747071438537,0.99587783,102850.0,102840.0,0.87762622]
[1747071438772,1.06068326,102850.0,102840.0,0.89382622]
[1747071438972,1.06168326,102850.0,102840.0,0.89782622]
[1747071439589,0.99687783,102850.0,102840.0,0.89782622]
[1747071439993,0.99687783,102850.0,102840.0,1.23782622]
[1747071441968,0.32148016,102850.0,102840.0,1.92226269]
[1747071442182,0.70724016,102850.0,102840.0,1.90281605]
[1747071442399,0.69751774,102850.0,102840.0,1.23782622]
[1747071442807,0.19528,102850.0,102840.0,1.93198653]
[1747071443018,0.21284116,102870.0,102860.0,0.59520375]
[1747071443230,0.23228212,102870.0,102860.0,1.0462717]
[1747071443440,0.42670226,102870.0,102860.0,1.0462717]
[1747071443640,0.42670226,102870.0,102860.0,1.93819699]
[1747071443641,0.23228203,102870.0,102860.0,1.93819699]
[1747071443844,0.24200284,102870.0,102860.0,2.30625699]
[1747071444052,0.23228203,102870.0,102860.0,2.27200399]
[1747071444460,0.23228212,102870.0,102860.0,2.27200399]
[1747071444705,0.23228203,102870.0,102860.0,2.40423699]
[1747071445308,0.24200284,102870.0,102860.0,2.28574299]
[1747071445449,0.24200284,102870.0,102860.0,1.73026899]
[1747071445664,0.23228203,102870.0,102860.0,1.73126899]
[1747071446650,0.24200284,102870.0,102860.0,1.47266382]
[1747071446860,0.24200284,102870.0,102860.0,1.67233682]
[1747071447426,0.42670264,102870.0,102860.0,1.66261553]
[1747071447657,0.2322825,102870.0,102860.0,1.67233682]
[1747071447890,0.43642364,102870.0,102860.0,1.67233682]
[1747071448105,0.43642364,102870.0,102860.0,1.66261553]
[1747071448323,0.23228306,102870.0,102860.0,1.67233682]
[1747071448754,0.21284125,102870.0,102860.0,1.67233682]
[1747071448971,0.19244,102880.0,102870.0,0.59538201]
[1747071449185,0.21187898,102880.0,102870.0,1.05617125]
[1747071449395,0.76486384,102900.0,102890.0,0.356]
[1747071449595,1.05383814,102900.0,102890.0,0.81678924]
[1747071449730,1.05383814,102900.0,102890.0,0.756]
[1747071449963,1.05383814,102900.0,102890.0,1.20078924]
[1747071450162,1.14969244,102900.0,102890.0,0.4]
[1747071450371,0.21384069,102880.0,102870.0,0.80078924]
[1747071450568,0.69533499,102880.0,102870.0,0.80092622]
[1747071450797,0.69533499,102880.0,102870.0,1.20092622]
[1747071451204,0.69733499,102880.0,102870.0,1.20192622]
[1747071451416,1.01323499,102880.0,102870.0,0.40113698]
[1747071451630,1.01323499,102880.0,102870.0,0.86392622]
[1747071451773,1.01423499,102880.0,102870.0,0.86392622]
[1747071452194,1.03013499,102880.0,102870.0,0.86392622]
[1747071452642,0.99833499,102880.0,102870.0,0.88002622]
[1747071452861,0.99841499,102880.0,102870.0,0.88002622]
[1747071453101,0.99841499,102880.0,102870.0,0.88202622]
[1747071453526,0.02243888,102880.0,102870.0,1.44116717]
[1747071453773,0.19336,102890.0,102880.0,0.59516028]
[1747071453986,0.42661738,102890.0,102880.0,1.50701936]
[1747071454188,0.42661738,102890.0,102880.0,1.51673894]
[1747071454574,0.43633649,102890.0,102880.0,1.52645843]
[1747071454753,0.43633649,102890.0,102880.0,1.53617783]
[1747071454926,0.43633649,102890.0,102880.0,1.53717783]
[1747071455134,0.43633649,102890.0,102880.0,1.9484272]
[1747071455335,0.43733649,102890.0,102880.0,1.9484272]
[1747071455546,0.43733649,102890.0,102880.0,1.92898831]
[1747071455949,0.40818048,102890.0,102880.0,1.43903985]
[1747071456161,0.58206453,102890.0,102880.0,0.87303861]
[1747071456380,0.89816453,102890.0,102880.0,0.41224937]
[1747071456699,0.89816453,102890.0,102880.0,0.87303861]
[1747071462190,0.82013478,102890.0,102880.0,0.87303861]
[1747071463866,0.93178908,102890.0,102880.0,0.87303861]
[1747071464722,0.83593478,102890.0,102880.0,0.87303861]
[1747071465794,0.53593478,102890.0,102880.0,0.41224937]
[1747071467632,0.91396453,102890.0,102880.0,0.001]
[1747071468736,0.83593478,102890.0,102880.0,0.001]
[1747071468995,0.93178908,102890.0,102880.0,0.001]
[1747071470825,0.64257478,102890.0,102880.0,0.46178924]
[1747071471055,0.10657256,102890.0,102880.0,0.70054952]
[1747071471281,0.10657275,102890.0,102880.0,1.51693876]
[1747071471495,0.52275168,102890.0,102880.0,1.05614952]
[1747071471711,0.53247079,102890.0,102880.0,1.45614952]
[1747071472157,0.3089313,102890.0,102880.0,1.45614952]
[1747071472409,0.22279583,102890.0,102880.0,1.91693876]
[1747071472808,0.23251456,102890.0,102880.0,1.91693876]
[1747071473236,0.213077,102890.0,102880.0,1.91693876]
[1747071473437,0.21307709,102890.0,102880.0,1.91693876]
[1747071473613,0.20335836,102890.0,102880.0,1.91693876]
[1747071473814,0.01071836,102890.0,102880.0,2.81114076]
[1747071474225,0.02043691,102890.0,102880.0,2.81114076]
[1747071474551,0.001,102890.0,102880.0,2.63298476]
[1747071474763,0.01071836,102890.0,102880.0,2.63298476]
[1747071475429,0.02043691,102890.0,102880.0,2.63298476]
[1747071475760,0.001,102890.0,102880.0,2.63298476]
[1747071477135,0.20411034,102910.0,102900.0,0.59521682]
[1747071477136,0.01943322,102910.0,102900.0,0.59521682]
[1747071477358,0.20211656,102910.0,102900.0,1.06572338]
[1747071477607,0.22155016,102910.0,102900.0,1.06572338]
[1747071477851,0.23126719,102910.0,102900.0,1.46572338]
[1747071478262,0.21183322,102910.0,102900.0,1.46672338]
[1747071478493,0.28070575,102920.0,102910.0,0.57859491]
[1747071478715,0.49241755,102920.0,102910.0,1.03938415]
[1747071478984,0.49241755,102920.0,102910.0,2.76893039]
[1747071478985,0.39503543,102920.0,102910.0,2.76893039]
[1747071479213,0.40475133,102920.0,102910.0,3.16893039]
[1747071479434,0.41446733,102920.0,102910.0,2.70814115]
[1747071479649,0.40475133,102920.0,102910.0,2.70827813]
[1747071479869,0.52150459,102930.0,102920.0,0.57857339]
[1747071480108,0.72552674,102930.0,102920.0,1.02964701]
[1747071480377,0.53316674,102930.0,102920.0,1.02964701]
[1747071480614,0.72560674,102930.0,102920.0,1.44907901]
[1747071480845,0.19244,102930.0,102920.0,1.93598387]
[1747071481072,0.20423449,102930.0,102920.0,2.76550787]
[1747071481299,0.03114412,102930.0,102920.0,2.74119787]
[1747071481518,0.23437927,102930.0,102920.0,2.23858463]
[1747071482156,0.23137927,102930.0,102920.0,2.23858463]
[1747071482364,0.24109451,102930.0,102920.0,2.23858463]
[1747071482579,0.01942916,102930.0,102920.0,2.69937387]
[1747071482805,0.01942916,102930.0,102920.0,2.71391289]
[1747071483469,0.39511364,102940.0,102930.0,0.57895168]
[1747071483689,0.2221012,102940.0,102930.0,1.05474092]
[1747071483920,0.23181521,102940.0,102930.0,1.05474092]
[1747071484184,0.43396941,102940.0,102930.0,1.86835892]
[1747071484428,0.59911614,102940.0,102930.0,1.42424159]
[1747071484659,0.60011614,102940.0,102930.0,1.43395645]
[1747071484882,0.59911614,102940.0,102930.0,1.43395645]
[1747071485106,0.59911614,102940.0,102930.0,1.42524159]
[1747071485307,0.59911614,102940.0,102930.0,1.43495645]
[1747071486247,0.61854483,102940.0,102930.0,1.44467122]
[1747071488430,0.61854483,102940.0,102930.0,1.43495645]
[1747071489517,0.72717092,102940.0,102930.0,0.741]
[1747071489738,0.72717092,102940.0,102930.0,1.20178924]
[1747071492154,0.71067092,102940.0,102930.0,1.4058112]
[1747071492375,0.70095662,102940.0,102930.0,1.39609605]
[1747071492582,0.68525662,102940.0,102930.0,1.39609605]
[1747071492795,0.68525662,102940.0,102930.0,1.40581139]
[1747071494470,0.69124223,102940.0,102930.0,1.20178924]
[1747071494673,0.70664223,102940.0,102930.0,1.20178924]
[1747071497384,0.32124223,102940.0,102930.0,0.741]
[1747071497619,1.16522819,102940.0,102930.0,0.741]
[1747071497857,1.08367198,102940.0,102930.0,0.741]
[1747071498104,0.62124223,102940.0,102930.0,1.20178924]
[1747071498358,0.38456,102940.0,102930.0,1.42524083]
[1747071498567,0.42341578,102940.0,102930.0,1.44114083]
[1747071498973,0.6278181,102940.0,102930.0,1.39609605]
[1747071499140,0.60839073,102940.0,102930.0,1.40581139]
[1747071499356,0.70424503,102940.0,102930.0,1.40581129]
[1747071499587,0.71974503,102940.0,102930.0,1.40581129]
[1747071500487,0.71974503,102940.0,102930.0,1.41552644]
[1747071500708,0.81001671,102940.0,102930.0,1.20178924]
[1747071500945,1.11001671,102940.0,102930.0,1.20178924]
[1747071501170,0.72593092,102940.0,102930.0,0.401]
[1747071501396,0.72593092,102940.0,102930.0,0.741]
[1747071501622,0.72593092,102940.0,102930.0,0.401]
[1747071503944,1.02593092,102940.0,102930.0,0.001]
[1747071504154,1.12178522,102940.0,102930.0,0.001]
[1747071507063,1.02593092,102940.0,102930.0,0.001]
[1747071507724,1.03500533,102940.0,102930.0,0.001]
[1747071507932,1.03524533,102940.0,102930.0,0.46178924]
[1747071508347,1.02617092,102940.0,102930.0,0.46178924]
[1747071508557,0.83313092,102940.0,102930.0,0.46178924]
[1747071508770,0.72625092,102940.0,102930.0,0.46178924]
[1747071509189,0.74853885,102940.0,102930.0,0.46178924]
[1747071509391,0.74853885,102940.0,102930.0,0.001]
[1747071510393,0.72625092,102940.0,102930.0,0.001]
[1747071510607,0.81723092,102940.0,102930.0,0.46178924]
[1747071510816,0.80173092,102940.0,102930.0,0.99609605]
[1747071511014,0.98537662,102940.0,102930.0,0.80178924]
[1747071511670,0.98537662,102940.0,102930.0,1.20178924]
[1747071514548,0.98537662,102940.0,102930.0,1.40581139]
[1747071514785,0.97566223,102940.0,102930.0,1.40581139]
[1747071515008,0.97566223,102940.0,102930.0,1.20178924]
[1747071516945,1.00726223,102940.0,102930.0,1.20178924]
[1747071518202,1.00726223,102940.0,102930.0,0.741]
[1747071518411,1.10311653,102940.0,102930.0,0.741]
[1747071518660,1.10311653,102940.0,102930.0,0.001]
[1747071518908,1.11220079,102940.0,102930.0,0.001]
[1747071520627,1.11901397,102940.0,102930.0,0.001]
[1747071521565,1.11220079,102940.0,102930.0,0.001]
[1747071523324,1.12674164,102940.0,102930.0,0.001]
[1747071523550,1.20477139,102940.0,102930.0,0.001]
[1747071523781,1.21158392,102940.0,102930.0,0.001]
[1747071523967,1.20249966,102940.0,102930.0,0.001]
[1747071525715,1.02861561,102940.0,102930.0,0.001]
[1747071525982,0.62855476,102940.0,102930.0,0.001]
[1747071526203,1.01443476,102940.0,102930.0,0.001]
[1747071526469,1.02351461,102940.0,102930.0,0.001]
[1747071527055,1.01670208,102940.0,102930.0,0.001]
[1747071527289,1.09380076,102940.0,102930.0,0.001]
[1747071530368,1.10061276,102940.0,102930.0,0.001]
[1747071531374,1.52037276,102940.0,102930.0,0.001]
[1747071532127,1.51129291,102940.0,102930.0,0.001]
[1747071532653,1.92583376,102940.0,102930.0,0.001]
[1747071532927,1.53395423,102940.0,102930.0,0.001]
[1747071533532,1.54303544,102940.0,102930.0,0.001]
[1747071533758,0.21375758,102920.0,102910.0,0.80092622]
[1747071533970,0.69521188,102920.0,102910.0,0.80092622]
[1747071534393,0.69521188,102920.0,102910.0,0.81682622]
[1747071535107,0.69521188,102920.0,102910.0,0.81782622]
[1747071536339,0.69521188,102920.0,102910.0,1.21782622]
[1747071538216,0.69521188,102920.0,102910.0,1.20192622]
[1747071540361,0.69521188,102920.0,102910.0,1.45632133]
[1747071540362,0.0958543,102920.0,102910.0,1.45632133]
[1747071540562,0.01942953,102930.0,102920.0,0.59437339]
[1747071540888,0.14473297,102930.0,102920.0,1.5256673]
[1747071541097,0.16416308,102930.0,102920.0,1.51595187]
[1747071541340,0.16416308,102930.0,102920.0,1.91595187]
[1747071541546,0.16416289,102930.0,102920.0,1.91595187]
[1747071541781,0.16616289,102930.0,102920.0,1.91595187]
[1747071541989,0.37018504,102930.0,102920.0,1.45516282]
[1747071542192,0.37018504,102930.0,102920.0,1.23168924]
[1747071542398,0.3507556,102930.0,102920.0,1.44544682]
[1747071543000,0.42817979,102930.0,102920.0,1.23168924]
[1747071543201,0.77638384,102930.0,102920.0,0.4]
[1747071543401,0.20404177,102920.0,102910.0,0.00013698]
[1747071543589,0.82345607,102920.0,102910.0,0.00013698]
[1747071544041,0.52345607,102920.0,102910.0,0.00013698]
[1747071544619,0.52345607,102920.0,102910.0,0.00113698]
[1747071545219,0.80795607,102920.0,102910.0,0.00113698]
[1747071545425,1.00095607,102920.0,102910.0,0.20519877]
[1747071545648,1.00095607,102920.0,102910.0,0.00113698]
[1747071546465,1.01645607,102920.0,102910.0,0.00113698]
[1747071547521,1.00095607,102920.0,102910.0,0.00113698]
[1747071548921,1.01735607,102920.0,102910.0,0.00113698]
[1747071550006,0.98569607,102920.0,102910.0,1.02168782]
[1747071550210,0.68569607,102920.0,102910.0,1.10152792]
[1747071550422,0.29852982,102920.0,102910.0,1.05632113]
[1747071550653,0.51092172,102920.0,102910.0,1.45632113]
[1747071553307,0.71496368,102920.0,102910.0,1.45632113]
[1747071553513,0.51092172,102920.0,102910.0,1.45632113]
[1747071554156,0.52063791,102920.0,102910.0,1.45632113]
[1747071554641,0.71496359,102920.0,102910.0,1.44660457]
[1747071554819,0.72467987,102920.0,102910.0,1.44660457]
[1747071555041,0.71496435,102920.0,102910.0,1.42168782]
[1747071555290,0.70524854,102920.0,102910.0,1.42168782]
[1747071555494,0.70524854,102920.0,102910.0,0.74113698]
[1747071555715,1.2007165,102920.0,102910.0,0.40113698]
[1747071556146,1.2007165,102920.0,102910.0,0.74113698]
[1747071556366,1.1048622,102920.0,102910.0,0.74113698]
[1747071558340,1.02683245,102920.0,102910.0,0.74113698]
[1747071558775,1.02683245,102920.0,102910.0,0.80192622]
[1747071559207,1.02683245,102920.0,102910.0,1.20192622]
[1747071561602,1.01133245,102920.0,102910.0,1.20192622]
[1747071561848,1.02673245,102920.0,102910.0,1.20192622]
[1747071562258,1.01133245,102920.0,102910.0,1.20192622]
[1747071562802,1.02733245,102920.0,102910.0,1.20192622]
[1747071567506,1.12318675,102920.0,102910.0,0.74113698]
[1747071568603,1.42318675,102920.0,102910.0,0.40113698]
[1747071568825,1.42318675,102920.0,102910.0,0.00113698]
[1747071572929,1.32733245,102920.0,102910.0,0.00113698]
[1747071581223,0.2348616,102910.0,102900.0,0.4]
[1747071581432,0.2348616,102910.0,102880.0,0.47578924]
[1747071581433,0.21381991,102890.0,102880.0,0.47578924]
[1747071581643,0.50127421,102890.0,102880.0,0.4759262]
[1747071581851,0.50127421,102890.0,102880.0,0.8759262]
[1747071582058,0.50127421,102890.0,102880.0,1.07032744]
[1747071582264,0.50127421,102890.0,102880.0,1.0800475]
[1747071582704,0.50227421,102890.0,102880.0,1.0860475]
[1747071582910,0.50227421,102890.0,102880.0,1.09576746]
[1747071583346,0.50227421,102890.0,102880.0,1.45022214]
[1747071583934,0.50327421,102890.0,102880.0,1.45622214]
[1747071584385,0.50327421,102890.0,102880.0,1.44122214]
[1747071584608,0.50327421,102890.0,102880.0,1.45094201]
[1747071585019,0.50327421,102890.0,102880.0,1.46674201]
[1747071586989,0.50327421,102890.0,102880.0,1.47646178]
[1747071587667,0.92180987,102890.0,102880.0,0.41213696]
[1747071588830,0.80935557,102890.0,102880.0,0.8729262]
[1747071592763,0.80835557,102890.0,102880.0,0.8669262]
[1747071593071,0.80835557,102890.0,102880.0,0.8689262]
[1747071593365,0.52335557,102890.0,102880.0,0.00813696]
[1747071593559,0.94323557,102890.0,102880.0,0.00813696]
[1747071593762,1.03808987,102890.0,102880.0,0.00213696]
[1747071593962,1.03908987,102890.0,102880.0,0.00513696]
[1747071595376,1.69863072,102890.0,102880.0,0.00513696]
[1747071595611,1.70542337,102890.0,102880.0,0.00513696]
[1747071595834,1.70542337,102890.0,102880.0,0.00313696]
[1747071596274,1.70542337,102890.0,102880.0,0.00413696]
[1747071596718,1.70442337,102890.0,102880.0,0.00013696]
[1747071596847,1.70442337,102890.0,102880.0,0.00213696]
[1747071597485,1.70642337,102890.0,102880.0,0.00213696]
[1747071600436,1.21482337,102890.0,102880.0,0.00213696]
[1747071600642,1.59778337,102890.0,102880.0,0.00213696]
[1747071603246,1.59099072,102890.0,102880.0,0.00213696]
[1747071606518,1.25099072,102890.0,102880.0,0.00213696]
[1747071607209,1.43559557,102890.0,102880.0,0.00213696]
[1747071612124,1.45013642,102890.0,102880.0,0.00213696]
[1747071612767,1.45692373,102890.0,102880.0,0.00213696]
[1747071619975,1.79692373,102890.0,102880.0,0.00213696]
[1747071620232,1.80692373,102890.0,102880.0,0.00213696]
[1747071620469,1.90277803,102890.0,102880.0,0.00213696]
[1747071627623,1.93002062,102890.0,102880.0,0.00213696]
[1747071629491,2.39080986,102890.0,102880.0,0.00213696]
[1747071630084,2.49080986,102890.0,102880.0,0.00213696]
[1747071630506,2.48980986,102890.0,102880.0,0.00213696]
[1747071630732,2.49480986,102890.0,102880.0,0.00313696]
[1747071631143,2.49380986,102890.0,102880.0,0.00113696]
[1747071631398,2.49780986,102890.0,102880.0,0.00213696]
[1747071632041,2.55617986,102890.0,102880.0,0.00213696]
[1747071632280,2.49780986,102890.0,102880.0,0.00213696]
[1747071633402,2.03702062,102890.0,102880.0,0.00213696]
[1747071633619,2.49780986,102890.0,102880.0,0.00213696]
[1747071636929,2.87580986,102890.0,102880.0,0.00213696]
[1747071637878,2.48780986,102890.0,102880.0,0.00213696]
[1747071642202,2.10484986,102890.0,102880.0,0.00213696]
[1747071642408,2.48972986,102890.0,102880.0,0.00213696]
[1747071642745,2.59202986,102890.0,102880.0,0.00213696]
[1747071642955,2.98002986,102890.0,102880.0,0.00213696]
[1747071643400,2.04206062,102890.0,102880.0,0.00213696]
[1747071643574,2.07739977,102890.0,102880.0,0.00213696]
[1747071643773,2.39015718,102890.0,102880.0,0.00213696]
[1747071644102,2.40469803,102890.0,102880.0,0.00213696]
[1747071644307,2.06469803,102890.0,102880.0,0.00213696]
[1747071644513,2.01669803,102890.0,102880.0,0.00213696]
[1747071644712,2.00669803,102890.0,102880.0,0.00213696]
[1747071644915,2.01669803,102890.0,102880.0,0.00213696]
[1747071645294,1.81329803,102890.0,102880.0,0.00213696]
[1747071645492,2.01661803,102890.0,102880.0,0.00213696]
[1747071649520,1.60681803,102890.0,102880.0,0.00213696]
[1747071649744,1.89856373,102890.0,102880.0,0.00213696]
[1747071649966,1.91506373,102890.0,102880.0,0.00213696]
[1747071652514,1.92506373,102890.0,102880.0,0.00213696]
[1747071652754,2.38585297,102890.0,102880.0,0.00213696]
[1747071653020,2.50894072,102890.0,102880.0,0.00213696]
[1747071653267,2.04815148,102890.0,102880.0,0.00213696]
[1747071657348,2.50894072,102890.0,102880.0,0.00213696]
[1747071659245,2.04815148,102890.0,102880.0,0.00213696]
[1747071660597,2.50894072,102890.0,102880.0,0.00213696]
[1747071661478,3.18214072,102890.0,102880.0,0.00213696]
[1747071662497,3.27944072,102890.0,102880.0,0.00113696]
[1747071662714,3.66092996,102890.0,102880.0,0.00113696]
[1747071662928,0.6,102830.0,102820.0,0.0152]
[1747071663152,0.6,102830.0,102820.0,0.01568274]
[1747071663153,1.38628895,102830.0,102820.0,0.01568274]
[1747071663359,1.38628895,102830.0,102820.0,0.02614509]
[1747071663581,1.38628895,102830.0,102820.0,0.04224509]
[1747071664017,1.38728895,102830.0,102820.0,0.04624509]
[1747071664226,1.38828895,102830.0,102820.0,0.05124509]
[1747071665979,1.29243465,102830.0,102820.0,0.05124509]
[1747071671818,1.29495465,102830.0,102820.0,0.51203433]
[1747071672027,0.99495465,102830.0,102820.0,0.05124509]
[1747071672852,0.99527465,102830.0,102820.0,0.51203433]
[1747071673609,0.99527465,102830.0,102820.0,0.05124509]
[1747071673805,1.09112895,102830.0,102820.0,0.05124509]
[1747071675506,0.79112895,102830.0,102820.0,0.05124509]
[1747071676499,0.79112895,102830.0,102820.0,0.91203433]
[1747071676645,0.99483465,102830.0,102820.0,0.91203433]
[1747071678646,0.79595465,102830.0,102820.0,0.91203433]
[1747071678863,0.99475465,102830.0,102820.0,1.11627474]
[1747071679730,0.99475465,102830.0,102820.0,0.92176006]
[1747071679936,0.98503006,102830.0,102820.0,0.92176006]
[1747071680929,0.98503006,102830.0,102820.0,1.11627474]
[1747071681384,0.1984,102840.0,102830.0,0.59456898]
[1747071681645,0.20812308,102840.0,102830.0,2.06704446]
[1747071681855,0.21784626,102840.0,102830.0,1.89518046]
[1747071682103,0.24701673,102840.0,102830.0,1.45535822]
[1747071682401,0.50817835,102840.0,102830.0,1.426185]
[1747071682627,0.51017835,102840.0,102830.0,1.45163447]
[1747071683245,0.5004548,102840.0,102830.0,1.23768924]
[1747071683978,0.5004548,102840.0,102830.0,1.432185]
[1747071686825,0.5004548,102840.0,102830.0,1.44190978]
[1747071687281,0.002,102840.0,102830.0,1.93187214]
[1747071687503,0.002,102840.0,102830.0,2.92701114]
[1747071687926,0.01172299,102840.0,102830.0,2.92701114]
[1747071688139,0.002,102840.0,102830.0,2.4662219]
[1747071688344,0.002,102840.0,102830.0,2.92701114]
[1747071688519,0.01172299,102840.0,102830.0,2.4662219]
[1747071688717,0.002,102840.0,102830.0,2.92701114]
[1747071689364,0.02144626,102840.0,102830.0,2.92701114]
[1747071689518,0.01172299,102840.0,102830.0,2.92701114]
[1747071690368,0.03116944,102840.0,102830.0,2.92701114]
[1747071690605,0.002,102840.0,102830.0,2.92701114]
[1747071690992,0.01172318,102840.0,102830.0,2.92701114]
[1747071691221,0.01172318,102840.0,102830.0,2.4662219]
[1747071691426,0.002,102840.0,102830.0,2.92701114]
[1747071696909,0.002,102840.0,102830.0,2.4662219]
[1747071697331,0.002,102840.0,102830.0,2.92701114]
[1747071698453,0.0877516,102860.0,102830.0,2.88811324]
[1747071698660,0.0877516,102860.0,102850.0,1.05491472]
[1747071698661,0.1,102860.0,102850.0,1.05491472]
[1747071698862,0.91918239,102870.0,102860.0,0.22006089]
[1747071699073,1.00531616,102870.0,102860.0,0.47668924]
[1747071699274,1.00531616,102870.0,102860.0,1.07112828]
[1747071699476,1.00531616,102870.0,102860.0,1.08085023]
[1747071700106,1.00531616,102870.0,102860.0,1.09061751]
[1747071700302,1.00531616,102870.0,102860.0,1.11106093]
[1747071700453,0.30429511,102870.0,102860.0,1.44133927]
[1747071700665,0.40520025,102870.0,102860.0,1.47718165]
[1747071700874,0.42464159,102870.0,102860.0,1.47718165]
[1747071701073,0.42464159,102870.0,102860.0,1.47818165]
[1747071701700,0.4343625,102870.0,102860.0,1.47818165]
[1747071701903,0.62878264,102870.0,102860.0,1.46846036]
[1747071702106,0.4343625,102870.0,102860.0,1.46178165]
[1747071704013,0.4343625,102870.0,102860.0,1.46629057]
[1747071704188,0.62878264,102870.0,102860.0,1.46629057]
[1747071705582,0.62878264,102870.0,102860.0,1.45656919]
[1747071705794,0.62878339,102870.0,102860.0,1.45039076]
[1747071706004,0.62878339,102870.0,102860.0,1.47561223]
[1747071706590,0.72463769,102870.0,102860.0,1.21833467]
[1747071706792,0.72169635,102870.0,102860.0,1.20283467]
[1747071706988,1.11936593,102870.0,102860.0,0.40204543]
[1747071707709,1.03819635,102870.0,102860.0,0.40204543]
[1747071708477,1.03819635,102870.0,102860.0,0.86283467]
[1747071713064,0.94271635,102870.0,102860.0,0.40204543]
[1747071713280,1.33415635,102870.0,102860.0,0.00204543]
[1747071713497,0.73415635,102870.0,102860.0,0.00204543]
[1747071713708,0.83001065,102870.0,102860.0,0.00204543]
[1747071713888,0.83681879,102870.0,102860.0,0.00204543]
[1747071714770,0.44537879,102870.0,102860.0,0.00204543]
[1747071714977,0.83713879,102870.0,102860.0,0.00204543]
[1747071716665,0.85167964,102870.0,102860.0,0.00204543]
[1747071716881,1.49167964,102870.0,102860.0,0.00204543]
[1747071718925,1.49667964,102870.0,102860.0,0.00204543]
[1747071719150,1.59667964,102870.0,102860.0,0.00204543]
[1747071719797,1.30167964,102870.0,102860.0,0.00204543]
[1747071720570,1.30167964,102870.0,102860.0,0.00104543]
[1747071720811,1.30567964,102870.0,102860.0,0.00204543]
[1747071721049,1.29555964,102870.0,102860.0,0.00204543]
[1747071721258,1.20970534,102870.0,102860.0,0.00204543]
[1747071721484,1.00894534,102870.0,102860.0,0.00204543]
[1747071721705,1.20470534,102870.0,102860.0,0.00204543]
[1747071722416,1.20470534,102870.0,102860.0,0.00104543]
[1747071722697,1.31355964,102870.0,102860.0,0.00204543]
[1747071722912,0.24544466,102830.0,102820.0,0.001]
[1747071723203,1.90779981,102830.0,102820.0,0.00148274]
[1747071723414,2.00365411,102830.0,102820.0,0.00148274]
[1747071723628,2.01046225,102830.0,102820.0,0.00148274]
[1747071723845,2.01546225,102830.0,102820.0,0.00148274]
[1747071724061,2.01582225,102830.0,102820.0,0.00148274]
[1747071724277,2.03120068,102830.0,102820.0,0.00148274]
[1747071724527,2.01694225,102830.0,102820.0,0.00148274]
[1747071724740,1.2615871,102830.0,102820.0,0.46227198]
[1747071724953,1.8321671,102830.0,102820.0,0.46227198]
[1747071725388,1.52547896,102830.0,102820.0,0.66651239]
[1747071725607,1.23520374,102830.0,102820.0,1.03203784]
[1747071725838,1.22547943,102830.0,102820.0,1.02231239]
[1747071726055,1.21575484,102830.0,102820.0,1.04176347]
[1747071726519,1.21575484,102830.0,102820.0,1.0612138]
[1747071726520,1.03098339,102830.0,102820.0,1.0612138]
[1747071726750,1.53520337,102830.0,102820.0,0.56152315]
[1747071726978,1.62133364,102830.0,102820.0,0.82779771]
[1747071727443,1.62133364,102830.0,102820.0,1.02131239]
[1747071727657,1.52547934,102830.0,102820.0,1.42131239]
[1747071728330,1.52547934,102830.0,102820.0,1.43103802]
[1747071728581,1.03098358,102830.0,102820.0,1.45048844]
[1747071728786,0.10857871,102830.0,102820.0,1.46628844]
[1747071728989,0.51027916,102830.0,102820.0,1.45656337]
[1747071729196,0.52000394,102830.0,102820.0,1.46628863]
[1747071729428,0.51900394,102830.0,102820.0,1.46628863]
[1747071729851,0.51800394,102830.0,102820.0,1.46728863]
[1747071730271,0.52000394,102830.0,102820.0,1.45956337]
[1747071730444,0.50055484,102830.0,102820.0,1.42431239]
[1747071730703,0.59540914,102830.0,102820.0,1.42331239]
[1747071730917,1.18668436,102830.0,102820.0,0.00348274]
[1747071731130,1.21918436,102830.0,102820.0,0.00348274]
[1747071733448,1.23372521,102830.0,102820.0,0.00348274]
[1747071733680,1.33372521,102830.0,102820.0,0.00348274]
[1747071734318,1.33272521,102830.0,102820.0,0.00248274]
[1747071734819,1.33372521,102830.0,102820.0,0.00248274]
[1747071735143,1.33172521,102830.0,102820.0,0.00048274]
[1747071735949,1.33272521,102830.0,102820.0,0.00048274]
[1747071737777,1.03272521,102830.0,102820.0,0.00048274]
[1747071741657,1.67272521,102830.0,102820.0,0.00048274]
[1747071741911,2.13351445,102830.0,102820.0,0.00048274]
[1747071742338,2.14030707,102830.0,102820.0,0.00048274]
[1747071742482,1.67951783,102830.0,102820.0,0.00048274]
[1747071744365,2.14530707,102830.0,102820.0,0.00048274]
[1747071744551,1.68451783,102830.0,102820.0,0.00048274]
[1747071744747,2.10475783,102830.0,102820.0,0.00048274]
[1747071747129,2.10982997,102830.0,102820.0,0.00048274]